[Event "*** SCC Grand Prix: Titled Tuesday Blitz"]
[Site "Chess.com"]
[Date "2020.07.07"]
[Round "10"]
[White "sergeikim"]
[Black "FMKonstantin_Twitch"]
[Result "0-1"]
[WhiteElo "2408"]
[BlackElo "2557"]
[TimeControl "180+1"]
[EndTime "11:57:14 PDT"]
[Termination "FMKonstantin_Twitch won on time"]

1. d4 {[%clk 0:03:00.9]} 1... Nf6 {[%clk 0:02:59.4]} 2. c4 {[%clk 0:03:00.7]}
2... e6 {[%clk 0:02:58.6]} 3. Nc3 {[%clk 0:03:00.7]} 3... Bb4 {[%clk 0:02:56.4]}
4. Qc2 {[%clk 0:03:00.6]} 4... O-O {[%clk 0:02:54]} 5. a3 {[%clk 0:03:00.3]}
5... Bxc3+ {[%clk 0:02:53.2]} 6. Qxc3 {[%clk 0:03:00.2]} 6... b6 {[%clk
0:02:54.1]} 7. Nf3 {[%clk 0:03:00]} 7... Bb7 {[%clk 0:02:54.4]} 8. g3 {[%clk
0:03:00.1]} 8... Ne4 {[%clk 0:02:54.2]} 9. Qc2 {[%clk 0:02:59.5]} 9... f5 {[%clk
0:02:54.6]} 10. Bg2 {[%clk 0:02:59.4]} 10... d6 {[%clk 0:02:49.4]} 11. O-O
{[%clk 0:02:59.1]} 11... Nd7 {[%clk 0:02:48.4]} 12. Ng5 {[%clk 0:02:59]} 12...
Nxg5 {[%clk 0:02:46.5]} 13. Bxb7 {[%clk 0:02:57.7]} 13... Rb8 {[%clk 0:02:47]}
14. Bg2 {[%clk 0:02:58]} 14... Nf7 {[%clk 0:02:44.5]} 15. b4 {[%clk 0:02:52.5]}
15... Nf6 {[%clk 0:02:39.2]} 16. Bb2 {[%clk 0:02:45.2]} 16... Qd7 {[%clk
0:02:37.2]} 17. Rad1 {[%clk 0:02:42.3]} 17... Rbe8 {[%clk 0:02:35.9]} 18. d5
{[%clk 0:02:14.4]} 18... e5 {[%clk 0:02:35.3]} 19. c5 {[%clk 0:02:14]} 19... g5
{[%clk 0:02:29.8]} 20. cxb6 {[%clk 0:02:01.4]} 20... cxb6 {[%clk 0:02:24.8]} 21.
Rc1 {[%clk 0:02:01.8]} 21... Rc8 {[%clk 0:02:23.5]} 22. Qd2 {[%clk 0:01:54.6]}
22... Rxc1 {[%clk 0:02:19.3]} 23. Rxc1 {[%clk 0:01:53.1]} 23... Rc8 {[%clk
0:02:20.2]} 24. Rc6 {[%clk 0:01:52.9]} 24... h6 {[%clk 0:02:16.7]} 25. Qc2
{[%clk 0:01:47.2]} 25... Re8 {[%clk 0:02:02.9]} 26. Rc7 {[%clk 0:01:33.9]} 26...
Qd8 {[%clk 0:02:02.3]} 27. Rxa7 {[%clk 0:01:31.8]} 27... e4 {[%clk 0:01:57.2]}
28. Bh3 {[%clk 0:01:21.7]} 28... g4 {[%clk 0:01:51.4]} 29. Bf1 {[%clk
0:01:19.8]} 29... Ne5 {[%clk 0:01:51.1]} 30. Bxe5 {[%clk 0:01:10.6]} 30... Rxe5
{[%clk 0:01:44.6]} 31. e3 {[%clk 0:01:09.4]} 31... Re7 {[%clk 0:01:37.5]} 32.
Ra6 {[%clk 0:01:02.9]} 32... Rc7 {[%clk 0:01:32.2]} 33. Qd1 {[%clk 0:01:01.1]}
33... Nd7 {[%clk 0:01:30.5]} 34. Bb5 {[%clk 0:00:55.3]} 34... Qc8 {[%clk
0:01:22.2]} 35. Qd4 {[%clk 0:00:47.1]} 35... Ne5 {[%clk 0:01:21]} 36. Qxb6
{[%clk 0:00:20.6]} 36... Nf3+ {[%clk 0:01:17.2]} 37. Kg2 {[%clk 0:00:19.8]}
37... Rc1 {[%clk 0:01:17.3]} 38. Bf1 {[%clk 0:00:17.6]} 38... Rxf1 {[%clk
0:01:17]} 0-1

[Event "*** SCC Grand Prix: Titled Tuesday Blitz"]
[Site "Chess.com"]
[Date "2020.07.07"]
[Round "10"]
[White "PavelShkapenko"]
[Black "Lion-Al-Messi"]
[Result "1-0"]
[WhiteElo "2591"]
[BlackElo "2448"]
[TimeControl "180+1"]
[EndTime "11:57:18 PDT"]
[Termination "PavelShkapenko won by resignation"]

1. e4 {[%clk 0:03:00.9]} 1... e6 {[%clk 0:03:00.2]} 2. d4 {[%clk 0:03:01.2]}
2... d5 {[%clk 0:03:00.8]} 3. exd5 {[%clk 0:03:01.6]} 3... exd5 {[%clk
0:03:01.7]} 4. Nf3 {[%clk 0:03:01.9]} 4... Bd6 {[%clk 0:03:02.1]} 5. c4 {[%clk
0:03:02.1]} 5... Nf6 {[%clk 0:03:01.6]} 6. Nc3 {[%clk 0:03:01.1]} 6... O-O
{[%clk 0:03:00.9]} 7. cxd5 {[%clk 0:03:00.5]} 7... Nbd7 {[%clk 0:03:00.8]} 8.
Bc4 {[%clk 0:02:56.3]} 8... Nb6 {[%clk 0:03:00.9]} 9. Bb3 {[%clk 0:02:56.6]}
9... Re8+ {[%clk 0:03:01.1]} 10. Kf1 {[%clk 0:02:56.7]} 10... Bg4 {[%clk
0:02:59.8]} 11. h3 {[%clk 0:02:53.6]} 11... Bh5 {[%clk 0:02:59.3]} 12. g4 {[%clk
0:02:54]} 12... Bg6 {[%clk 0:02:58.9]} 13. Ne5 {[%clk 0:02:54.4]} 13... Bxe5
{[%clk 0:02:58.1]} 14. dxe5 {[%clk 0:02:54.3]} 14... Rxe5 {[%clk 0:02:59]} 15.
f4 {[%clk 0:02:54.4]} 15... Be4 {[%clk 0:02:58.4]} 16. fxe5 {[%clk 0:02:18.6]}
16... Bxh1 {[%clk 0:02:58.1]} 17. exf6 {[%clk 0:01:57.9]} 17... Qxf6+ {[%clk
0:02:57.3]} 18. Kg1 {[%clk 0:01:58.4]} 18... Bf3 {[%clk 0:02:57.1]} 19. Qd3
{[%clk 0:01:58]} 19... Re8 {[%clk 0:02:54.1]} 20. Bd2 {[%clk 0:01:57.7]} 20...
Nd7 {[%clk 0:02:50]} 21. Qf5 {[%clk 0:01:48.2]} 21... Qd4+ {[%clk 0:02:48.7]}
22. Kf1 {[%clk 0:01:37.5]} 22... Ne5 {[%clk 0:02:32.3]} 23. Bf4 {[%clk
0:01:05.1]} 23... Ng6 {[%clk 0:02:07.3]} 24. Bg3 {[%clk 0:01:02.3]} 24... Re3
{[%clk 0:01:56.2]} 25. d6 {[%clk 0:00:42.2]} 25... Bd5 {[%clk 0:00:27.3]} 26.
Bxd5 {[%clk 0:00:37]} 1-0

[Event "*** SCC Grand Prix: Titled Tuesday Blitz"]
[Site "Chess.com"]
[Date "2020.07.07"]
[Round "10"]
[White "ketster"]
[Black "pedromartinez91"]
[Result "0-1"]
[WhiteElo "2433"]
[BlackElo "2555"]
[TimeControl "180+1"]
[EndTime "11:57:18 PDT"]
[Termination "pedromartinez91 won on time"]

1. d4 {[%clk 0:03:00.9]} 1... Nf6 {[%clk 0:02:56.5]} 2. c4 {[%clk 0:03:01.1]}
2... g6 {[%clk 0:02:55.3]} 3. Nc3 {[%clk 0:03:00.7]} 3... Bg7 {[%clk 0:02:55.7]}
4. e4 {[%clk 0:03:00.3]} 4... O-O {[%clk 0:02:56.6]} 5. Nf3 {[%clk 0:02:59.9]}
5... c6 {[%clk 0:02:56.9]} 6. e5 {[%clk 0:02:57.6]} 6... Ne8 {[%clk 0:02:56.7]}
7. Be2 {[%clk 0:02:56.9]} 7... d6 {[%clk 0:02:56.9]} 8. O-O {[%clk 0:02:56.4]}
8... Bg4 {[%clk 0:02:54.5]} 9. Bf4 {[%clk 0:02:55.7]} 9... dxe5 {[%clk
0:02:50.8]} 10. dxe5 {[%clk 0:02:55.1]} 10... Na6 {[%clk 0:02:43.9]} 11. h3
{[%clk 0:02:49.2]} 11... Bxf3 {[%clk 0:02:41.2]} 12. Bxf3 {[%clk 0:02:48.3]}
12... Nc5 {[%clk 0:02:41.3]} 13. Qc2 {[%clk 0:02:42.5]} 13... Qd3 {[%clk
0:02:39]} 14. Qe2 {[%clk 0:02:26.9]} 14... Nc7 {[%clk 0:02:34.3]} 15. Rad1
{[%clk 0:02:17.3]} 15... Qxe2 {[%clk 0:02:34]} 16. Bxe2 {[%clk 0:02:05.5]} 16...
N7e6 {[%clk 0:02:32.6]} 17. Bg3 {[%clk 0:01:53.9]} 17... a5 {[%clk 0:02:31.4]}
18. f4 {[%clk 0:01:47.3]} 18... Rfd8 {[%clk 0:02:30.4]} 19. Bf2 {[%clk 0:01:43]}
19... f6 {[%clk 0:02:27]} 20. Bg3 {[%clk 0:01:25.2]} 20... a4 {[%clk 0:02:17.5]}
21. Bg4 {[%clk 0:01:12.7]} 21... f5 {[%clk 0:02:15.9]} 22. Be2 {[%clk
0:01:09.6]} 22... Nd4 {[%clk 0:02:15.6]} 23. Bf2 {[%clk 0:01:02.4]} 23... Nce6
{[%clk 0:02:12.1]} 24. g3 {[%clk 0:00:55.2]} 24... g5 {[%clk 0:02:07.5]} 25. Be3
{[%clk 0:00:54.1]} 25... gxf4 {[%clk 0:02:05.6]} 26. gxf4 {[%clk 0:00:55]} 26...
Bh6 {[%clk 0:02:01.5]} 27. Bd3 {[%clk 0:00:44.4]} 27... Kf7 {[%clk 0:01:59.3]}
28. Kh2 {[%clk 0:00:40.5]} 28... Ng7 {[%clk 0:01:46.8]} 29. c5 {[%clk
0:00:35.6]} 29... Nge6 {[%clk 0:01:32.3]} 30. Bc4 {[%clk 0:00:33.2]} 30... Kg7
{[%clk 0:01:32.4]} 31. Rd2 {[%clk 0:00:15.9]} 31... Ra5 {[%clk 0:01:30.6]} 32.
Rg2+ {[%clk 0:00:14.2]} 32... Kh8 {[%clk 0:01:30.4]} 33. Bd3 {[%clk 0:00:04.6]}
33... Rxc5 {[%clk 0:01:23.3]} 34. Bxf5 {[%clk 0:00:03.7]} 34... Rxc3 {[%clk
0:01:23.4]} 35. Bxd4 {[%clk 0:00:03.7]} 35... Nxd4 {[%clk 0:01:23.4]} 36. bxc3
{[%clk 0:00:03.5]} 36... Nxf5 {[%clk 0:01:23.7]} 37. Rb2 {[%clk 0:00:04.1]}
37... b5 {[%clk 0:01:23.1]} 38. Rc1 {[%clk 0:00:04.1]} 38... Bxf4+ {[%clk
0:01:22.7]} 39. Kg2 {[%clk 0:00:04]} 39... Bxc1 {[%clk 0:01:23.6]} 40. Kf3
{[%clk 0:00:04.9]} 40... Bxb2 {[%clk 0:01:23.7]} 41. Ke4 {[%clk 0:00:05.8]}
41... Bxc3 {[%clk 0:01:24.2]} 42. Kxf5 {[%clk 0:00:06.7]} 42... Rd5 {[%clk
0:01:24.3]} 43. Ke6 {[%clk 0:00:07.6]} 43... Rxe5+ {[%clk 0:01:24.9]} 0-1

[Event "*** SCC Grand Prix: Titled Tuesday Blitz"]
[Site "Chess.com"]
[Date "2020.07.07"]
[Round "10"]
[White "WilliamSchill"]
[Black "NarminSoyunlu"]
[Result "1-0"]
[WhiteElo "1971"]
[BlackElo "2047"]
[TimeControl "180+1"]
[EndTime "11:57:18 PDT"]
[Termination "WilliamSchill won by checkmate"]

1. e4 {[%clk 0:03:00.9]} 1... e6 {[%clk 0:02:58.5]} 2. d4 {[%clk 0:03:00.1]}
2... d5 {[%clk 0:02:59.4]} 3. Nc3 {[%clk 0:02:59.6]} 3... Nf6 {[%clk 0:02:51.7]}
4. e5 {[%clk 0:02:55.9]} 4... Nfd7 {[%clk 0:02:52]} 5. f4 {[%clk 0:02:54]} 5...
c5 {[%clk 0:02:52.3]} 6. Nf3 {[%clk 0:02:53.9]} 6... Nc6 {[%clk 0:02:52.8]} 7.
Be3 {[%clk 0:02:52.8]} 7... Be7 {[%clk 0:02:53.1]} 8. Qd2 {[%clk 0:02:51.7]}
8... cxd4 {[%clk 0:02:51.8]} 9. Nxd4 {[%clk 0:02:50.6]} 9... O-O {[%clk
0:02:52]} 10. Bd3 {[%clk 0:02:41.9]} 10... Nxd4 {[%clk 0:02:51.1]} 11. Bxd4
{[%clk 0:02:41.3]} 11... Bc5 {[%clk 0:02:51.7]} 12. Ne2 {[%clk 0:02:32.8]} 12...
Qb6 {[%clk 0:02:45.8]} 13. O-O-O {[%clk 0:02:17.5]} 13... Bxd4 {[%clk
0:02:41.8]} 14. Nxd4 {[%clk 0:02:17]} 14... Nc5 {[%clk 0:02:42.4]} 15. h4 {[%clk
0:02:00.3]} 15... Nxd3+ {[%clk 0:02:41.9]} 16. Qxd3 {[%clk 0:02:00]} 16... Bd7
{[%clk 0:02:42.5]} 17. h5 {[%clk 0:01:50.1]} 17... Rac8 {[%clk 0:02:42.4]} 18.
h6 {[%clk 0:01:46.1]} 18... g6 {[%clk 0:02:39.7]} 19. Qb3 {[%clk 0:01:35.2]}
19... Qxb3 {[%clk 0:02:35.2]} 20. axb3 {[%clk 0:01:33.6]} 20... f5 {[%clk
0:02:15.6]} 21. c3 {[%clk 0:01:11.6]} 21... Rc7 {[%clk 0:02:03.3]} 22. Kd2
{[%clk 0:01:08.6]} 22... a6 {[%clk 0:02:01.2]} 23. b4 {[%clk 0:01:08.2]} 23...
Rfc8 {[%clk 0:01:59.1]} 24. g4 {[%clk 0:00:58.8]} 24... fxg4 {[%clk 0:01:58.3]}
25. Rdg1 {[%clk 0:00:58.8]} 25... Rf8 {[%clk 0:01:54.5]} 26. Rxg4 {[%clk
0:00:58.4]} 26... Bc8 {[%clk 0:01:55.1]} 27. Rhg1 {[%clk 0:00:42.7]} 27... Rcf7
{[%clk 0:01:53.7]} 28. Ke3 {[%clk 0:00:42.2]} 28... Kh8 {[%clk 0:01:52.8]} 29.
Nf3 {[%clk 0:00:42.2]} 29... Rf5 {[%clk 0:01:49.5]} 30. Ng5 {[%clk 0:00:41.8]}
30... Bd7 {[%clk 0:01:46.9]} 31. Ra1 {[%clk 0:00:40.2]} 31... Rc8 {[%clk
0:01:44.1]} 32. Ra5 {[%clk 0:00:39.3]} 32... Rc4 {[%clk 0:01:41.5]} 33. Rc5
{[%clk 0:00:37.4]} 33... Rxe5+ {[%clk 0:01:32.6]} 34. fxe5 {[%clk 0:00:27.5]}
34... Rxg4 {[%clk 0:01:31.8]} 35. Nf3 {[%clk 0:00:21.9]} 35... Bc6 {[%clk
0:01:09]} 36. Nd4 {[%clk 0:00:19.1]} 36... Re4+ {[%clk 0:01:08.9]} 37. Kd2
{[%clk 0:00:19.2]} 37... Rxe5 {[%clk 0:01:07.4]} 38. Nxc6 {[%clk 0:00:19.4]}
38... bxc6 {[%clk 0:01:07.5]} 39. Rxc6 {[%clk 0:00:19.7]} 39... Rh5 {[%clk
0:00:57.4]} 40. Rc8# {[%clk 0:00:18.9]} 1-0

[Event "*** SCC Grand Prix: Titled Tuesday Blitz"]
[Site "Chess.com"]
[Date "2020.07.07"]
[Round "10"]
[White "Ariadna_Atreides"]
[Black "Quiet_Desperation"]
[Result "0-1"]
[WhiteElo "2077"]
[BlackElo "2226"]
[TimeControl "180+1"]
[EndTime "11:57:20 PDT"]
[Termination "Quiet_Desperation won by checkmate"]

1. d4 {[%clk 0:02:58.2]} 1... d5 {[%clk 0:02:52.7]} 2. Nf3 {[%clk 0:02:54.7]}
2... c6 {[%clk 0:02:53]} 3. c4 {[%clk 0:02:53.9]} 3... Nf6 {[%clk 0:02:53.4]} 4.
Nbd2 {[%clk 0:02:53.3]} 4... Bf5 {[%clk 0:02:47.1]} 5. Nh4 {[%clk 0:02:52.6]}
5... Be6 {[%clk 0:02:45.4]} 6. c5 {[%clk 0:02:41.3]} 6... Nbd7 {[%clk
0:02:42.2]} 7. Nhf3 {[%clk 0:02:25.2]} 7... h6 {[%clk 0:02:37.5]} 8. e3 {[%clk
0:02:24.4]} 8... Bf5 {[%clk 0:02:31.4]} 9. h3 {[%clk 0:02:16]} 9... Qc7 {[%clk
0:02:29.9]} 10. Be2 {[%clk 0:02:10.5]} 10... e5 {[%clk 0:02:29.2]} 11. dxe5
{[%clk 0:01:47.8]} 11... Nxe5 {[%clk 0:02:28.2]} 12. Nxe5 {[%clk 0:01:48]} 12...
Qxe5 {[%clk 0:02:28.3]} 13. Nf3 {[%clk 0:01:48.5]} 13... Qc7 {[%clk 0:02:27.3]}
14. Nd4 {[%clk 0:01:42.7]} 14... Bg6 {[%clk 0:02:23.5]} 15. b4 {[%clk
0:01:21.8]} 15... a5 {[%clk 0:02:22.9]} 16. Bd2 {[%clk 0:01:16.3]} 16... axb4
{[%clk 0:02:21.9]} 17. Bxb4 {[%clk 0:01:16.3]} 17... Be7 {[%clk 0:02:16.2]} 18.
Bd3 {[%clk 0:01:15.6]} 18... Bxd3 {[%clk 0:02:11.3]} 19. Qxd3 {[%clk 0:01:15]}
19... O-O {[%clk 0:02:08.1]} 20. O-O {[%clk 0:01:13.2]} 20... Ne4 {[%clk
0:02:08]} 21. Rfc1 {[%clk 0:01:07.8]} 21... Ra4 {[%clk 0:02:05.9]} 22. a3 {[%clk
0:01:07.3]} 22... Rfa8 {[%clk 0:01:57.6]} 23. Nf5 {[%clk 0:01:06]} 23... Bf6
{[%clk 0:01:57.5]} 24. Rab1 {[%clk 0:01:02.9]} 24... Qe5 {[%clk 0:01:53.6]} 25.
Nd6 {[%clk 0:00:51]} 25... Nxd6 {[%clk 0:01:50.7]} 26. cxd6 {[%clk 0:00:51.9]}
26... Qe6 {[%clk 0:01:39.4]} 27. Bc5 {[%clk 0:00:46.2]} 27... Qd7 {[%clk
0:01:32.9]} 28. Rb3 {[%clk 0:00:43.1]} 28... b5 {[%clk 0:01:25]} 29. Qc2 {[%clk
0:00:34.3]} 29... Be5 {[%clk 0:01:18.1]} 30. f4 {[%clk 0:00:24.8]} 30... Rc4
{[%clk 0:01:16.3]} 31. Qd2 {[%clk 0:00:19.6]} 31... Bxd6 {[%clk 0:01:14.4]} 32.
Bxd6 {[%clk 0:00:18.1]} 32... Qxd6 {[%clk 0:01:14.4]} 33. Rxc4 {[%clk
0:00:14.8]} 33... bxc4 {[%clk 0:01:14.4]} 34. Rb7 {[%clk 0:00:14.5]} 34... Qxa3
{[%clk 0:01:09.7]} 35. Qe2 {[%clk 0:00:09.5]} 35... Qd3 {[%clk 0:01:00.8]} 36.
Qh5 {[%clk 0:00:07.7]} 36... Qxe3+ {[%clk 0:00:59.9]} 37. Kh1 {[%clk 0:00:07.6]}
37... Ra1+ {[%clk 0:00:58.8]} 38. Kh2 {[%clk 0:00:07.8]} 38... Qxf4+ {[%clk
0:00:58.8]} 39. g3 {[%clk 0:00:07.9]} 39... Qf2# {[%clk 0:00:58.5]} 0-1

[Event "*** SCC Grand Prix: Titled Tuesday Blitz"]
[Site "Chess.com"]
[Date "2020.07.07"]
[Round "10"]
[White "bmt011"]
[Black "canary2016"]
[Result "1-0"]
[WhiteElo "2106"]
[BlackElo "1915"]
[TimeControl "180+1"]
[EndTime "11:57:21 PDT"]
[Termination "bmt011 won by checkmate"]

1. d4 {[%clk 0:03:00.9]} 1... d5 {[%clk 0:02:59.7]} 2. Bf4 {[%clk 0:02:59.2]}
2... Nf6 {[%clk 0:02:58.9]} 3. e3 {[%clk 0:02:58.8]} 3... e6 {[%clk 0:02:58.5]}
4. Nf3 {[%clk 0:02:56.9]} 4... c5 {[%clk 0:02:58.2]} 5. c3 {[%clk 0:02:56.3]}
5... Bd6 {[%clk 0:02:57.9]} 6. Ne5 {[%clk 0:02:53]} 6... Qc7 {[%clk 0:02:56.9]}
7. Bb5+ {[%clk 0:02:52.2]} 7... Bd7 {[%clk 0:02:46.5]} 8. Nxd7 {[%clk
0:02:25.3]} 8... Nbxd7 {[%clk 0:02:43.7]} 9. Bg5 {[%clk 0:02:09.4]} 9... O-O
{[%clk 0:02:40.8]} 10. Nd2 {[%clk 0:01:59.6]} 10... h6 {[%clk 0:02:37.9]} 11.
Bh4 {[%clk 0:01:46.9]} 11... a6 {[%clk 0:02:36.7]} 12. Bd3 {[%clk 0:01:35]}
12... Rac8 {[%clk 0:02:31.4]} 13. g4 {[%clk 0:01:18.5]} 13... Bxh2 {[%clk
0:02:11.9]} 14. g5 {[%clk 0:01:13.7]} 14... hxg5 {[%clk 0:02:03.7]} 15. Bxg5
{[%clk 0:01:13.8]} 15... e5 {[%clk 0:01:35.5]} 16. Qf3 {[%clk 0:00:54.5]} 16...
e4 {[%clk 0:01:32.3]} 17. Qh3 {[%clk 0:00:51.7]} 17... Nh7 {[%clk 0:00:18.7]}
18. Bf4 {[%clk 0:00:20.4]} 18... Qd8 {[%clk 0:00:12.9]} 19. Rxh2 {[%clk
0:00:20.8]} 19... Ndf6 {[%clk 0:00:11.2]} 20. Bg5 {[%clk 0:00:17.5]} 20... cxd4
{[%clk 0:00:09.2]} 21. Bxf6 {[%clk 0:00:17.4]} 21... Qxf6 {[%clk 0:00:07.2]} 22.
Qxh7# {[%clk 0:00:17.8]} 1-0

[Event "*** SCC Grand Prix: Titled Tuesday Blitz"]
[Site "Chess.com"]
[Date "2020.07.07"]
[Round "10"]
[White "Kildepiotr"]
[Black "Savva09022009"]
[Result "1/2-1/2"]
[WhiteElo "2605"]
[BlackElo "2467"]
[TimeControl "180+1"]
[EndTime "11:57:23 PDT"]
[Termination "Game drawn by repetition"]

1. Nf3 {[%clk 0:03:00.9]} 1... Nf6 {[%clk 0:02:59.3]} 2. g3 {[%clk 0:03:00.7]}
2... e6 {[%clk 0:02:59]} 3. Bg2 {[%clk 0:03:01.3]} 3... d5 {[%clk 0:02:59.5]} 4.
O-O {[%clk 0:03:01.8]} 4... Be7 {[%clk 0:03:00.4]} 5. d3 {[%clk 0:03:02.3]} 5...
O-O {[%clk 0:03:01.1]} 6. Nbd2 {[%clk 0:03:03]} 6... c5 {[%clk 0:03:01.2]} 7. e4
{[%clk 0:03:03.4]} 7... Nc6 {[%clk 0:03:02.1]} 8. Qe2 {[%clk 0:03:03.3]} 8...
dxe4 {[%clk 0:02:59.5]} 9. dxe4 {[%clk 0:03:04.2]} 9... Qc7 {[%clk 0:02:56.3]}
10. c3 {[%clk 0:03:04.3]} 10... b6 {[%clk 0:02:55.8]} 11. Re1 {[%clk 0:03:02.7]}
11... Bb7 {[%clk 0:02:56]} 12. Nf1 {[%clk 0:03:02.5]} 12... Rad8 {[%clk
0:02:48.2]} 13. Bf4 {[%clk 0:03:02.2]} 13... Qc8 {[%clk 0:02:41.8]} 14. Rad1
{[%clk 0:02:59.1]} 14... Rxd1 {[%clk 0:02:41]} 15. Rxd1 {[%clk 0:02:58.9]} 15...
Rd8 {[%clk 0:02:41.9]} 16. Rxd8+ {[%clk 0:02:53.6]} 16... Qxd8 {[%clk
0:02:42.8]} 17. N3d2 {[%clk 0:02:52]} 17... h6 {[%clk 0:02:38.1]} 18. h4 {[%clk
0:02:42.3]} 18... Bc8 {[%clk 0:02:34.3]} 19. Be3 {[%clk 0:02:36.8]} 19... e5
{[%clk 0:02:31.7]} 20. f3 {[%clk 0:02:36.8]} 20... Be6 {[%clk 0:02:31.1]} 21. b3
{[%clk 0:02:32.1]} 21... Na5 {[%clk 0:02:13.6]} 22. Bf2 {[%clk 0:02:29.7]} 22...
Nc6 {[%clk 0:01:58.7]} 23. Ne3 {[%clk 0:02:29]} 23... Bf8 {[%clk 0:01:56.3]} 24.
Kh2 {[%clk 0:02:27.9]} 24... g6 {[%clk 0:01:55.5]} 25. Bh3 {[%clk 0:02:27.6]}
25... Bxh3 {[%clk 0:01:54.4]} 26. Kxh3 {[%clk 0:02:28.5]} 26... Qd7+ {[%clk
0:01:55.1]} 27. Kg2 {[%clk 0:02:28.9]} 27... h5 {[%clk 0:01:56]} 28. a4 {[%clk
0:02:24.5]} 28... Bh6 {[%clk 0:01:48.1]} 29. Ndc4 {[%clk 0:02:24.4]} 29... Bxe3
{[%clk 0:01:36.4]} 30. Bxe3 {[%clk 0:02:23]} 30... Ne8 {[%clk 0:01:35.3]} 31.
Bg5 {[%clk 0:02:15.9]} 31... Nc7 {[%clk 0:01:34.6]} 32. Qe3 {[%clk 0:02:08.8]}
32... Qd1 {[%clk 0:01:31.1]} 33. Bf6 {[%clk 0:02:01]} 33... Qc2+ {[%clk
0:01:30.5]} 34. Kh3 {[%clk 0:01:58.9]} 34... Qd1 {[%clk 0:01:28.5]} 35. Kg2
{[%clk 0:01:56.1]} 35... Qc2+ {[%clk 0:01:28]} 36. Kh3 {[%clk 0:01:46.7]} 36...
Qd1 {[%clk 0:01:27.4]} 37. g4 {[%clk 0:01:47]} 37... hxg4+ {[%clk 0:01:22.5]}
38. fxg4 {[%clk 0:01:47]} 38... Qh1+ {[%clk 0:01:21.4]} 39. Kg3 {[%clk
0:01:46.7]} 39... Ne6 {[%clk 0:01:22.3]} 40. Nxe5 {[%clk 0:01:43.4]} 40... Nxe5
{[%clk 0:01:21.7]} 41. Bxe5 {[%clk 0:01:44.3]} 41... Qd1 {[%clk 0:01:19.1]} 42.
Qf3 {[%clk 0:01:37.7]} 42... Qxb3 {[%clk 0:01:10]} 43. Qf6 {[%clk 0:01:35.6]}
43... Kf8 {[%clk 0:01:10.3]} 44. h5 {[%clk 0:01:32]} 44... gxh5 {[%clk
0:01:05.8]} 45. gxh5 {[%clk 0:01:32.9]} 45... Qd1 {[%clk 0:01:05.9]} 46. h6
{[%clk 0:01:29.5]} 46... Qg1+ {[%clk 0:01:04.8]} 47. Kh3 {[%clk 0:01:28.9]}
47... Qh1+ {[%clk 0:01:03.7]} 48. Kg3 {[%clk 0:01:19.4]} 48... Qg1+ {[%clk
0:01:02.9]} 49. Kh3 {[%clk 0:01:04.8]} 49... Qh1+ {[%clk 0:00:53]} 50. Kg3
{[%clk 0:00:55.8]} 50... Qg1+ {[%clk 0:00:52]} 1/2-1/2

[Event "*** SCC Grand Prix: Titled Tuesday Blitz"]
[Site "Chess.com"]
[Date "2020.07.07"]
[Round "10"]
[White "Jospem"]
[Black "AccioChess"]
[Result "1-0"]
[WhiteElo "2863"]
[BlackElo "2492"]
[TimeControl "180+1"]
[EndTime "11:57:32 PDT"]
[Termination "Jospem won by checkmate"]

1. c4 {[%clk 0:02:47.4]} 1... Nf6 {[%clk 0:02:58.1]} 2. Nc3 {[%clk 0:02:47.4]}
2... e5 {[%clk 0:02:51.1]} 3. Nf3 {[%clk 0:02:46.8]} 3... Nc6 {[%clk 0:02:50.7]}
4. a3 {[%clk 0:02:29.6]} 4... e4 {[%clk 0:02:16.9]} 5. Ng5 {[%clk 0:02:20.6]}
5... Qe7 {[%clk 0:02:16.4]} 6. f3 {[%clk 0:01:51.8]} 6... exf3 {[%clk
0:02:10.4]} 7. Nxf3 {[%clk 0:01:52.7]} 7... d6 {[%clk 0:02:07.2]} 8. e3 {[%clk
0:01:50.4]} 8... g6 {[%clk 0:02:05.4]} 9. Be2 {[%clk 0:01:50.2]} 9... Bh6 {[%clk
0:01:56.7]} 10. O-O {[%clk 0:01:49.5]} 10... O-O {[%clk 0:01:56.4]} 11. b4
{[%clk 0:01:46.1]} 11... a5 {[%clk 0:01:53.7]} 12. b5 {[%clk 0:01:38.2]} 12...
Ne5 {[%clk 0:01:52.5]} 13. Bb2 {[%clk 0:01:37.3]} 13... Be6 {[%clk 0:01:36.7]}
14. Qa4 {[%clk 0:01:26.7]} 14... b6 {[%clk 0:01:11.1]} 15. Rac1 {[%clk
0:01:08.4]} 15... Rad8 {[%clk 0:01:07.2]} 16. Nd1 {[%clk 0:01:00.4]} 16... Nfd7
{[%clk 0:01:02.6]} 17. Qc2 {[%clk 0:00:53.1]} 17... Bf5 {[%clk 0:00:56.5]} 18.
e4 {[%clk 0:00:51.3]} 18... Bg4 {[%clk 0:00:26.7]} 19. Nc3 {[%clk 0:00:42.1]}
19... Be6 {[%clk 0:00:20.2]} 20. Nd4 {[%clk 0:00:23.8]} 20... Nxc4 {[%clk
0:00:17.7]} 21. Nxe6 {[%clk 0:00:21.8]} 21... Qxe6 {[%clk 0:00:17.4]} 22. Bxc4
{[%clk 0:00:19.8]} 22... Qxc4 {[%clk 0:00:17.4]} 23. Nd5 {[%clk 0:00:20.5]}
23... Qxc2 {[%clk 0:00:09.2]} 24. Ne7# {[%clk 0:00:12.8]} 1-0

[Event "*** SCC Grand Prix: Titled Tuesday Blitz"]
[Site "Chess.com"]
[Date "2020.07.07"]
[Round "10"]
[White "Anton_Demchenko"]
[Black "SergeyKarjakin"]
[Result "0-1"]
[WhiteElo "2863"]
[BlackElo "2968"]
[TimeControl "180+1"]
[EndTime "11:57:34 PDT"]
[Termination "SergeyKarjakin won on time"]

1. e4 {[%clk 0:03:00.9]} 1... c5 {[%clk 0:02:58.7]} 2. Nc3 {[%clk 0:02:59.6]}
2... d6 {[%clk 0:02:58.8]} 3. g3 {[%clk 0:02:57.4]} 3... g6 {[%clk 0:02:58.5]}
4. Bg2 {[%clk 0:02:58]} 4... Bg7 {[%clk 0:02:59.1]} 5. Nge2 {[%clk 0:02:58.2]}
5... Nc6 {[%clk 0:02:59.7]} 6. d3 {[%clk 0:02:58.1]} 6... e6 {[%clk 0:02:54.5]}
7. Be3 {[%clk 0:02:54]} 7... Nd4 {[%clk 0:02:52.3]} 8. O-O {[%clk 0:02:37.7]}
8... Ne7 {[%clk 0:02:52.2]} 9. b4 {[%clk 0:02:36.5]} 9... O-O {[%clk 0:02:47.2]}
10. bxc5 {[%clk 0:02:30.4]} 10... dxc5 {[%clk 0:02:48.1]} 11. Rb1 {[%clk
0:02:27.8]} 11... Nxe2+ {[%clk 0:02:26]} 12. Nxe2 {[%clk 0:02:27.4]} 12... b6
{[%clk 0:02:26.9]} 13. Qd2 {[%clk 0:02:14.9]} 13... Bb7 {[%clk 0:02:26.3]} 14.
Bxc5 {[%clk 0:02:10.9]} 14... Rc8 {[%clk 0:02:22.1]} 15. Be3 {[%clk 0:02:10.6]}
15... Qc7 {[%clk 0:02:19.6]} 16. Rfc1 {[%clk 0:02:09.9]} 16... Rfd8 {[%clk
0:02:19.3]} 17. Bh6 {[%clk 0:01:54.5]} 17... Nc6 {[%clk 0:02:15.4]} 18. Bxg7
{[%clk 0:01:52.5]} 18... Kxg7 {[%clk 0:02:16.3]} 19. f4 {[%clk 0:01:30.6]} 19...
Qe7 {[%clk 0:02:07.1]} 20. Qe3 {[%clk 0:01:18.4]} 20... Nb4 {[%clk 0:02:04.9]}
21. Qd2 {[%clk 0:01:04.1]} 21... Qc5+ {[%clk 0:01:52.9]} 22. Kh1 {[%clk
0:00:55.2]} 22... Nxa2 {[%clk 0:01:46.9]} 23. c3 {[%clk 0:00:55]} 23... Nxc1
{[%clk 0:01:46.1]} 24. Rxc1 {[%clk 0:00:45.8]} 24... Ba6 {[%clk 0:01:37.9]} 25.
c4 {[%clk 0:00:45.6]} 25... Qa3 {[%clk 0:01:37]} 26. f5 {[%clk 0:00:28.5]} 26...
Qxd3 {[%clk 0:01:07.4]} 27. Qb2+ {[%clk 0:00:23.6]} 27... Kg8 {[%clk 0:01:05.3]}
28. fxe6 {[%clk 0:00:24]} 28... fxe6 {[%clk 0:01:06]} 29. Nf4 {[%clk 0:00:16.5]}
29... Qd4 {[%clk 0:01:04.5]} 30. Qa3 {[%clk 0:00:05.2]} 30... Bxc4 {[%clk
0:01:01.3]} 31. Qxa7 {[%clk 0:00:04.7]} 31... Ra8 {[%clk 0:00:49.1]} 32. Qe7
{[%clk 0:00:04.3]} 32... Ra1 {[%clk 0:00:46.7]} 0-1